Cogmind - Beta 15 @@@ ROGUE MODE // 2025.06.24 @ 18:54:14 Player: KN-OKO Result: Destroyed by Y-64 Sentinel with KE Penetrator Performance ------------- Evolutions (6) 3000 Regions Visited (9) 1800 Robots Destroyed (78) 390 Value Destroyed (3085) 3085 Prototype IDs (22) 440 Alien Tech Used (2) 400 Bonus (1224) 1224 TOTAL SCORE: 10339 Bonus ------- Follower Combat Kills 124 Registered with UFD 300 Met Optimus in HQ 500 Met Zhirov 300 Cogmind --------- Core Integrity 0/1150 Matter 290/300 Energy 99/100 System Corruption 0% Temperature Cool (9) Movement Core (50) Location -4/Factory Parts ------- > --- POWER (2) -------- (None) > --- PROPULSION (6) --- Improved Antigrav System > --- UTILITY (7) ------ System Shield > --- WEAPON (4) ------- Axe > --- INVENTORY (5) ---- Advanced Energy Well (500) Makeshift Terrain Scanner Improved Cloaking Device Long-range Missile Launcher Peak State ------------ > --- POWER ------------ Antimatter Reactor Light Antimatter Reactor > --- PROPULSION ------- Improved Carbon-fiber Leg Flexi-carbon Leg Flexi-carbon Leg Flexi-carbon Leg Flexi-carbon Leg Flexi-carbon Leg > --- UTILITY ---------- High-capacity Storage Unit Makeshift Terrain Scanner Improved Melee Analysis Suite Advanced Melee Analysis Suite Advanced Melee Analysis Suite Makeshift Transmission Jammer Improved Cloaking Device > --- WEAPON ----------- Heavy Plasma Cannon Chainsword Chainsword Ripper > --- INVENTORY -------- Light Antimatter Reactor Armored Medium Treads Heavy Treads Flexi-carbon Leg Flexi-carbon Leg Myomer Leg Advanced Energy Well Matter Compressor Improved Melee Analysis Suite Improved Cloaking Device Hardened Heavy Armor Plating Transdimensional Reconstructor Heavy Shock Bomb Launcher Grenade Launcher Axe Power Sword Vortex Trap Vortex Trap [Rating: 104] Favorites ----------- Power Improved Deuterium Engine Engine Improved Deuterium Engine Power Core Light Fission Core Reactor Light Antimatter Reactor Propulsion Flexi-carbon Leg Treads Light Treads Leg Flexi-carbon Leg Wheel Armored Huge Wheel Hover Unit Improved Antigrav System Utility High-capacity Storage Unit Device Improved Sensor Array Storage High-capacity Storage Unit Processor Advanced Melee Analysis Suite Hackware Improved System Shield Protection Medium Armor Plating Weapon Autogun Energy Gun Small Laser Energy Cannon Heavy Plasma Cannon Ballistic Gun Autogun Launcher Grenade Launcher Special Weapon Mining Laser Slashing Weapon Chainsword Build | -11 -10 -10 -7 -5 -5 -5 -5 -4 -4 ------- Run | Yrd Mat Sub Scr Fac Upp Upp Zhi Pro Fac Slots Evolved 12 | . . . . 10 . . . . 2 Power 1 | . . . . . . . . . 1 Propulsion 4 | . . . . 3 . . . . 1 Utility 5 | . . . . 5 . . . . . Weapon 2 | . . . . 2 . . . . . Parts Attached 99 | 7 11 4 6 23 3 5 3 19 18 Power 11 | 1 . 1 2 . 1 . . 4 2 Engine 4 | 1 . 1 1 . 1 . . . . Core 1 | . . . 1 . . . . . . Reactor 6 | . . . . . . . . 4 2 Propulsion 31 | 2 3 . 3 4 1 5 . 7 6 Treads 7 | 2 . . . 2 1 . . . 2 Leg 20 | . 3 . . 2 . 5 . 7 3 Wheel 3 | . . . 3 . . . . . . Hover 1 | . . . . . . . . . 1 Flight . | . . . . . . . . . . Utility 35 | 2 2 1 1 12 . . 3 6 8 Device 13 | 1 . . . 5 . . . 3 4 Storage 3 | 1 1 . . . . . 1 . . Processor 6 | . . . . 3 . . . 1 2 Hackware 3 | . . . . 1 . . 1 . 1 Protection 10 | . 1 1 1 3 . . 1 2 1 Artifact . | . . . . . . . . . . Weapon 22 | 2 6 2 . 7 1 . . 2 2 Energy Gun 7 | 2 3 . . . . . . . 2 Energy Cannon 1 | . . . . 1 . . . . . Ballistic Gun 5 | . 3 . . 2 . . . . . Ballistic Cannon . | . . . . . . . . . . Launcher 2 | . . 1 . . 1 . . . . Special Weapon 1 | . . 1 . . . . . . . Impact Weapon . | . . . . . . . . . . Slashing Weapon 6 | . . . . 4 . . . 2 . Piercing Weapon . | . . . . . . . . . . Special Melee Weapon . | . . . . . . . . . . Unidentified Prototypes 5 | . 1 . . . . . 3 . 1 Parts Lost 50 | . 1 1 . . 1 . . 16 31 Power 6 | . . 1 . . . . . 1 4 Propulsion 19 | . . . . . 1 . . 6 12 Utility 16 | . . . . . . . . 8 8 Weapon 9 | . 1 . . . . . . 1 7 Highest Loss Streak 31 | . 1 1 . . 1 . . 14 31 To Critical Strikes . | . . . . . . . . . . Average Backups 15 | 3 14 19 18 15 16 15 15 14 9 Power . | . . . . . . . . . . Propulsion 4 | 2 5 6 5 4 6 4 4 4 1 Utility 4 | . 3 4 4 5 6 7 7 5 3 Weapon 5 | . 4 8 8 5 3 3 4 3 2 Tool/Special . | . . . . . . . . . . Unused Backups 29 | . 9 . 8 6 . 1 . 1 4 Power 2 | . 1 . . . . . . 1 . Propulsion 3 | . 1 . 2 . . . . . . Utility 11 | . 2 . 2 3 . 1 . . 3 Weapon 13 | . 5 . 4 3 . . . . 1 Tool/Special . | . . . . . . . . . . Average Slot Usage (%) 91 | . 99 100 93 82 88 94 100 95 65 Engine 7 | . 14 14 10 5 5 5 5 2 . Treads 7 | . 18 . . 7 11 4 . . 1 Leg 10 | . 9 28 . 4 . 15 29 28 17 Wheel 4 | . . . 21 5 5 2 . . . Device 9 | . 12 4 . 12 11 10 11 9 7 Storage 8 | . 14 14 14 5 5 5 5 5 3 Processor 5 | . . . . 5 11 11 11 11 9 Hackware 1 | . . . . . 5 5 5 2 . Protection 5 | . 1 9 14 7 5 5 5 5 1 Energy Gun 4 | . 17 . . . . . . . . Ballistic Gun 10 | . 10 22 27 17 . . . . . Slashing Weapon 8 | . . . . 5 22 21 23 20 12 Peak Build Rating 104 | 7 14 13 25 80 82 80 86 90 104 Average Rating 47 | 4 9 12 19 66 79 78 78 81 66 On Entrance 45 | . 7 12 12 24 79 80 77 80 84 Naked Turns . | . . . . . . . . . . Heaviest Build 99 | 13 52 58 63 99 78 78 71 84 94 Greatest Support 123 | 40 40 20 28 28 28 96 96 98 123 Greatest Overweight (x) 3 | . 2 2 2 3 2 2 . 3 1 Average Overweight (x) 1 | . 1 2 2 2 2 . . . . Largest Inventory Capacity 20 | 8 20 20 20 20 20 20 20 20 20 Average Capacity 19 | 6 19 20 20 20 20 20 20 20 15 Most Carried 20 | 6 20 20 20 20 20 20 20 20 20 Average Carried 16 | 4 14 19 19 17 19 18 18 17 11 Final Capacity 20 | 8 20 20 20 20 20 20 20 20 5 Final Carried 20 | 6 20 19 20 18 19 18 20 16 4 Class Distribution -------------------- 45% | Mutant 28% | Gladiator 8% | Derelict-Gladiator 8% | Tank 6% | Skirmisher Dominant Class ---------------- Mutant | -10/Materials Mutant | -10/Subcaves Mutant | -7/Scraptown Tank | -5/Factory Gladiator | -5/Upper Caves Gladiator | -5/Upper Caves Gladiator | -5/Zhirov Gladiator | -4/Proximity Caves Derelict-Gladiator | -4/Factory Resources | -11 -10 -10 -7 -5 -5 -5 -5 -4 -4 ----------- Run | Yrd Mat Sub Scr Fac Upp Upp Zhi Pro Fac Matter Collected 3784 | 270 491 23 271 1726 297 121 75 350 160 Remotely . | . . . . . . . . . . Salvage Created 4048 | 75 473 49 . 1537 359 172 109 837 437 Parts 168 | 5 24 2 . 61 10 10 2 36 18 Haulers Intercepted . | . . . . . . . . . . Recyclers Shooed 6 | 1 1 . . 4 . . . . . Parts Field Recycled . | . . . . . . . . . . Retrieved Matter . | . . . . . . . . . . Parts Self-Destructed 72 | . . 13 . . 15 9 2 33 . Prevented 4 | . . . . . 3 . . 1 . Kills | -11 -10 -10 -7 -5 -5 -5 -5 -4 -4 ------- Run | Yrd Mat Sub Scr Fac Upp Upp Zhi Pro Fac Combat Hostiles Destroyed 59 | . 11 3 . 11 9 2 . 17 6 Melee 21 | . . . . 3 1 2 . 13 2 Guns 20 | . 11 1 . 8 . . . . . Cannons 1 | . . . . . 1 . . . . AOE 16 | . . 2 . . 6 . . 4 4 Classes Destroyed 16 | 2 3 1 . 6 1 1 . 1 1 Worker 2 | . . . . 2 . . . . . Tunneler 1 | 1 . . . . . . . . . Recycler 9 | 1 1 . . 6 . . . . 1 Minesweeper 1 | . . . . . . 1 . . . Operator 2 | . . . . 1 . . . . 1 Watcher 3 | . 1 . . 2 . . . . . Swarmer 20 | . 3 . . 4 4 . . 9 . Grunt 18 | . 8 . . . 3 . . 7 . Duelist 1 | . . . . . . . . 1 . Sentry 4 | . . . . 1 . . . 1 2 Specialist 2 | . . . . . . . . . 2 Hunter 5 | . . . . 1 . 2 . . 2 Programmer 5 | . . . . 4 1 . . . . Behemoth 1 | . . . . 1 . . . . . Subdweller 3 | . . 3 . . . . . . . Savage 1 | . . . . . 1 . . . . Best Kill Streak 5 | 2 2 2 . 5 4 2 . 4 5 Combat Bots Only 5 | . 2 2 . 5 4 2 . 4 4 Max Kills in Single Turn 3 | 1 1 1 . 1 2 1 . 2 3 Gunslinging . | . . . . . . . . . . Exploded 2 | . . 1 . . 2 . . 2 2 Melee 1 | . . . . 1 1 1 . 1 1 Uniques/NPCs Destroyed . | . . . . . . . . . . Combat | -11 -10 -10 -7 -5 -5 -5 -5 -4 -4 -------- Run | Yrd Mat Sub Scr Fac Upp Upp Zhi Pro Fac Hostile Shots Fired 721 | . 59 21 . 98 49 45 . 200 249 Missed 187 | . 11 8 . 25 23 9 . 51 60 Hits 534 | . 48 13 . 73 26 36 . 149 189 Melee 11 | . . . . . . . . 11 . Projectile 523 | . 48 13 . 73 26 36 . 138 189 AOE 1 | . 1 . . . . . . . . Critical Strikes 16 | . . . . 2 1 1 . 7 5 Part Disruptions 1 | . . . . . . . . 1 . Damage Taken 10303 | . 554 271 . 1153 457 565 . 2986 4317 Core 1905 | . 106 81 . 105 . 86 . 433 1094 Absorbed by Shields . | . . . . . . . . . . Reduced by Siege Mode 47 | . . . . . . . . . 47 Redirected to Shielding 148 | . . . . . . . . 148 . Core Remaining (%) 54 | 100 . . 25 . . . . 37 . Volleys Fired 171 | 3 36 12 . 57 26 5 . 22 10 Largest 4 | 2 2 2 . 4 1 1 . 1 2 Hottest 170 | 80 85 100 . 92 90 90 . 90 170 Shots Fired 375 | 6 73 17 . 212 26 5 . 21 15 Gun 301 | 6 73 9 . 207 . . . . 6 Cannon 45 | . . . . 5 12 5 . 14 9 Launcher 28 | . . 7 . . 14 . . 7 . Special 1 | . . 1 . . . . . . . Kinetic 243 | . 27 9 . 207 . . . . . Thermal 104 | 6 46 1 . 5 12 5 . 14 15 Explosive 21 | . . 7 . . 10 . . 4 . Electromagnetic 7 | . . . . . 4 . . 3 . Robot Hit Streak 31 | 4 8 6 . 31 4 . . 2 22 Robot Miss Streak 4 | . 3 2 . 4 2 . . 4 1 Penetration Max . | . . . . . . . . . . Secondary Targets 3 | . 3 . . . . . . . . Max Gunslinging Chain 1 | . 1 . . . . . . . . Shots Hit Robots 312 | 4 43 6 . 154 11 8 3 54 29 Core Hits 152 | 3 21 5 . 52 20 2 1 34 14 Critical Kills 1 | . . . . 1 . . . . . Critical Parts Destroyed 3 | . . . . 3 . . . . . Critical Strikes 22 | . . . . 7 . 1 . 12 2 Destroy 4 | . . . . 4 . . . . . Sever 18 | . . . . 3 . 1 . 12 2 Melee Attacks 197 | . . . . 28 13 18 3 93 42 Impact . | . . . . . . . . . . Slashing 197 | . . . . 28 13 18 3 93 42 Piercing . | . . . . . . . . . . Sneak Attacks 8 | . . . . 3 . 2 . 3 . Combat Hostiles . | . . . . . . . . . . Follow-up Attacks 27 | . . . . 8 1 3 . 14 1 Damage Inflicted 10185 | 45 518 494 . 2772 1176 386 227 2620 1947 Guns 2977 | 45 516 97 . 2131 . . . . 188 Cannons 226 | . . . . . 64 . . . 162 Explosions 2726 | . . 397 . . 924 . . 561 844 Melee 4254 | . . . . 641 188 386 227 2059 753 Ramming 2 | . 2 . . . . . . . . Kinetic 2401 | . 173 97 . 2131 . . . . . Thermal 802 | 45 343 . . . 64 . . . 350 Explosive 1377 | . . 397 . . 626 . . 354 . Electromagnetic 505 | . . . . . 298 . . 207 . Impact . | . . . . . . . . . . Slashing 4254 | . . . . 641 188 386 227 2059 753 Piercing . | . . . . . . . . . . Entropic 844 | . . . . . . . . . 844 Highest Corruption 15 | . 4 4 . 5 7 7 7 15 . Average Corruption 6 | . 3 4 . 4 6 7 7 10 . Corruption Purged . | . . . . . . . . . . Corruption Blocked . | . . . . . . . . . . Effects 110 | . 8 8 . 24 15 15 3 37 . Message Errors 28 | . 1 1 . 6 3 6 1 10 . Matter Fused 33 | . . 3 . 6 7 5 2 10 . Heat Flow Errors 12 | . 2 . . 3 1 3 . 3 . Energy Discharges 9 | . . 1 . 1 2 . . 5 . Parts Fused 4 | . 1 . . 2 . . . 1 . Data Loss (minor) 12 | . 3 1 . 3 1 . . 4 . Data Loss (major) 4 | . . . . 2 1 . . 1 . Misfires 2 | . 1 1 . . . . . . . Alerts 4 | . . 1 . . . 1 . 2 . Weapon Failures 2 | . . . . 1 . . . 1 . Overload Shots . | . . . . . . . . . . Overflow Damage 352 | . . . . 37 . 135 27 86 67 Projectiles . | . . . . . . . . . . Explosions 74 | . . . . . . . . 7 67 Melee 278 | . . . . 37 . 135 27 79 . Knockbacks . | . . . . . . . . . . Impact . | . . . . . . . . . . Kinetic . | . . . . . . . . . . Secondary . | . . . . . . . . . . Self-Inflicted Damage 376 | . . . . . 20 . . 18 338 Shots 4 | . . . . . 1 . . 1 2 Rammed 1 | . 1 . . . . . . . . Targets Rammed 1 | . 1 . . . . . . . . Kicked . | . . . . . . . . . . Crushed . | . . . . . . . . . . Highest Temperature 363 | 56 363 . . 236 188 244 . 306 197 Average Temperature 81 | 26 88 . . 77 59 82 . 110 44 Received Heat Transfer 2136 | . 246 78 . 18 48 . . 652 1094 Effects 4 | . 4 . . . . . . . . Energy Bleed 2 | . 2 . . . . . . . . Interference 1 | . 1 . . . . . . . . Short Circuit 1 | . 1 . . . . . . . . Siege Activations 1 | . . . . . . . . . 1 Total Turns 17 | . . . . . . . . . 17 Longest Duration 17 | . . . . . . . . . 17 Martial Activations . | . . . . . . . . . . Shielding Activations . | . . . . . . . . . . Robots Disrupted . | . . . . . . . . . . Combat Hostiles . | . . . . . . . . . . Robots Corrupted 1 | . . . . . 1 . . . . Combat Hostiles 1 | . . . . . 1 . . . . Parts Fried 4 | . . . . . 4 . . . . Impact Corruptions . | . . . . . . . . . . Robots Melted . | . . . . . . . . . . Combat Hostiles . | . . . . . . . . . . Parts Melted 3 | . 1 . . . 1 . . 1 . Heat Transferred 1661 | 100 786 . . . 100 . . . 675 Parts Sabotaged . | . . . . . . . . . . Parts Stolen . | . . . . . . . . . . Parts Stripped . | . . . . . . . . . . Power Chain Reactions . | . . . . . . . . . . Alert | -11 -10 -10 -7 -5 -5 -5 -5 -4 -4 ------- Run | Yrd Mat Sub Scr Fac Upp Upp Zhi Pro Fac Maximum Alert Level . | . . . . . . . . . . Low Security (%) 100 | 100 100 . . 100 . . . . 100 Level 1 . | . . . . . . . . . . Level 2 . | . . . . . . . . . . Level 3 . | . . . . . . . . . . Level 4 . | . . . . . . . . . . Level 5 . | . . . . . . . . . . High Security . | . . . . . . . . . . Max Security . | . . . . . . . . . . Peak Influence 151 | 5 70 . . 96 . . . . 151 Initial 132 | . . . . . . . . . 132 Average 26 | . 9 . . 30 . . . . 81 Influence Increases 1920 | 10 292 . . 401 235 55 5 543 379 Destroy 0b10 Robot/C 1160 | . 220 . . 220 160 40 . 360 160 Destroy 0b10 Robot/NC 95 | 10 10 . . 55 . 5 5 . 10 Destroy Leader 226 | . 62 . . 54 30 10 . 30 40 Allied During Kill 13 | . . . . . . . . 3 10 Successful Hack 29 | . . . . 24 . . . . 5 Disable Machine 60 | . . . . 30 . . . . 30 Destroy Structure 112 | . . . . 18 . . . . 94 Lose Combat Pursuer 225 | . . . . . 45 . . 150 30 Influence Decreases 1787 | 10 250 42 . 358 191 142 5 332 457 Entered New Map 133 | . . 21 . . 16 17 . . 79 Time Decay 1353 | 10 240 21 . 358 165 125 5 187 242 Lost Part 261 | . 10 . . . 10 . . 145 96 Lost Ally 40 | . . . . . . . . . 40 Squads Dispatched 14 | . 3 . . 5 . . . . 6 Investigation 6 | . 1 . . 3 . . . . 2 Extermination 3 | . . . . 2 . . . . 1 Reinforcement 4 | . 2 . . . . . . . 2 Assault . | . . . . . . . . . . Garrison 1 | . . . . . . . . . 1 Intercept . | . . . . . . . . . . Searches Triggered . | . . . . . . . . . . Construction Impeded . | . . . . . . . . . . Haulers Reinforced . | . . . . . . . . . . Active Scanning Responses . | . . . . . . . . . . Cargo Convoy Interrupts . | . . . . . . . . . . Stealth | -11 -10 -10 -7 -5 -5 -5 -5 -4 -4 --------- Run | Yrd Mat Sub Scr Fac Upp Upp Zhi Pro Fac Distress Signals 2 | . 1 . . 1 . . . . . Communications Jammed . | . . . . . . . . . . Distress Signals . | . . . . . . . . . . Times Spotted 112 | . 22 4 . 17 22 2 . 26 19 Peak Tracking Total 10 | . 4 2 . 3 10 2 . 6 5 Tactical Retreats 13 | . . . . . 3 . . 7 3 Traps | -11 -10 -10 -7 -5 -5 -5 -5 -4 -4 ------- Run | Yrd Mat Sub Scr Fac Upp Upp Zhi Pro Fac Traps Triggered 8 | . 3 . . 1 . . . 1 3 Indirectly . | . . . . . . . . . . Trap Hack Attempts . | . . . . . . . . . . Triggered . | . . . . . . . . . . Disarmed . | . . . . . . . . . . Reprogrammed . | . . . . . . . . . . Reused . | . . . . . . . . . . Traps Extracted . | . . . . . . . . . . Installed 2 | . . . . . . . . . 2 Triggered . | . . . . . . . . . . Most Traps Carried 2 | . . . 2 2 2 2 2 2 2 Machines | -11 -10 -10 -7 -5 -5 -5 -5 -4 -4 ---------- Run | Yrd Mat Sub Scr Fac Upp Upp Zhi Pro Fac Machines Disabled 4 | . . . . 2 . . . . 2 Max in Single Turn 1 | . . . . 1 . . . . 1 Garrison Access 1 | . . . . . . . . . 1 Machines Repaired . | . . . . . . . . . . Machines Dismantled . | . . . . . . . . . . Machines Sabotaged . | . . . . . . . . . . Overloaded Fab Kills . | . . . . . . . . . . Hacking | -11 -10 -10 -7 -5 -5 -5 -5 -4 -4 --------- Run | Yrd Mat Sub Scr Fac Upp Upp Zhi Pro Fac Machines Accessed 23 | . 2 . 1 10 1 . 4 . 5 Terminals 8 | . 2 . . 5 . . . . 1 Fabricators 2 | . . . . 1 . . . . 1 Repair Stations . | . . . . . . . . . . Recycling Units 4 | . . . . 2 . . . . 2 Scanalyzers 1 | . . . . 1 . . . . . Garrison Access 2 | . . . . 1 . . . . 1 Total Hacks 65 | . 7 . 1 30 1 . 17 . 9 Successful 38 | . 2 . 1 13 1 . 17 . 4 Failed 27 | . 5 . . 17 . . . . 5 Catastrophic 6 | . 1 . . 4 . . . . 1 Database Lockouts . | . . . . . . . . . . Manual 35 | . 7 . . 22 . . . . 6 Terminals 27 | . 7 . . 19 . . . . 1 Fabricators 8 | . . . . 5 . . . . 3 Repair Stations . | . . . . . . . . . . Recycling Units 7 | . . . . 4 . . . . 3 Scanalyzers 1 | . . . . 1 . . . . . Garrison Access 3 | . . . . 1 . . . . 2 Terminal Hacks 23 | . . . 1 4 1 . 17 . . Record 5 | . . . . . . . 5 . . Part Schematic 4 | . . . . . . . 4 . . Robot Analysis 4 | . . . . . . . 4 . . Prototype ID Bank 4 | . . . . . . . 4 . . Open Door 1 | . . . . . 1 . . . . Branch Access Points 1 | . . . . 1 . . . . . Emergency Access Points 1 | . . . . 1 . . . . . Recycling Unit Index 1 | . . . . 1 . . . . . Alert Level 1 | . . . . 1 . . . . . Proto ID Catalog 1 | . . . 1 . . . . . . Fabricator Hacks 2 | . . . . 1 . . . . 1 Network Status 1 | . . . . 1 . . . . . Build 1 | . . . . . . . . . 1 Repair Station Hacks . | . . . . . . . . . . Recycling Unit Hacks 1 | . . . . 1 . . . . . Report Inventory 1 | . . . . 1 . . . . . Scanalyzer 1 | . . . . 1 . . . . . Insert Component 1 | . . . . 1 . . . . . Garrison Access Hacks 1 | . . . . . . . . . 1 Seal Access 1 | . . . . . . . . . 1 Unauthorized Hacks 10 | . 2 . . 6 . . . . 2 Terminals 5 | . 2 . . 3 . . . . . Botnet 5 | . 2 . . 3 . . . . . Fabricators 1 | . . . . 1 . . . . . Fabnet 1 | . . . . 1 . . . . . Repair Stations . | . . . . . . . . . . Recycling Units 4 | . . . . 2 . . . . 2 Fedlink 4 | . . . . 2 . . . . 2 Scanalyzers . | . . . . . . . . . . Garrison Access . | . . . . . . . . . . Data Cores Recovered 1 | . . . . . . . . . 1 Used . | . . . . . . . . . . Hacking Detections 12 | . 2 . . 7 . . . . 3 Full Trace Events . | . . . . . . . . . . Feedback Events . | . . . . . . . . . . Feedback Blocked . | . . . . . . . . . . Robot Schematics Acquired . | . . . . . . . . . . Robots Built . | . . . . . . . . . . Authchips . | . . . . . . . . . . Time . | . . . . . . . . . . Total Robot Build Rating . | . . . . . . . . . . Part Schematics Acquired 4 | . . . . . . . 4 . . Parts Built 2 | . . . . . . . . . 2 Authchips . | . . . . . . . . . . Time 117 | . . . . . . . . . 117 Total Part Build Rating 14 | . . . . . . . . . 14 Parts Repaired . | . . . . . . . . . . Time . | . . . . . . . . . . Parts Recycled . | . . . . . . . . . . Recycled Matter . | . . . . . . . . . . Retrieved Matter . | . . . . . . . . . . Retrieved Components . | . . . . . . . . . . Parts Scanalyzed . | . . . . . . . . . . Part Schematics Acquired . | . . . . . . . . . . Parts Damaged . | . . . . . . . . . . Bothacking | -11 -10 -10 -7 -5 -5 -5 -5 -4 -4 ------------ Run | Yrd Mat Sub Scr Fac Upp Upp Zhi Pro Fac Used RIF Installer . | . . . . . . . . . . Robots Hacked 1 | . . . . . . . . 1 . Non-combat . | . . . . . . . . . . Combat 1 | . . . . . . . . 1 . Robot Hacks Applied . | . . . . . . . . . . Relay Couplers Released . | . . . . . . . . . . Fabnet Peak Effective % 3 | . . . . . . . . 3 3 Autooverrided 1 | . . . . . . . . 1 . Robots Rewired 4 | . . . . . 2 . . . 2 Allies Hacked . | . . . . . . . . . . Hacks Repelled . | . . . . . . . . . . Allies | -11 -10 -10 -7 -5 -5 -5 -5 -4 -4 -------- Run | Yrd Mat Sub Scr Fac Upp Upp Zhi Pro Fac Total Allies 5 | . . . . . 2 . . 1 2 Largest Group 2 | . . . . . 2 . . 1 2 Highest-Rated Group 86 | . . . . . 62 . . 12 86 Highest-Rated Ally 56 | . . . . . 31 . . 12 56 Total Orders . | . . . . . . . . . . Ally Attacks 17 | . . . . . 4 . . 3 10 Total Damage 594 | . . . . . 103 . . 51 440 Kills 3 | . . . . . . . . 1 2 Allies Corrupted . | . . . . . . . . . . Allies Melted . | . . . . . . . . . . Intel | -11 -10 -10 -7 -5 -5 -5 -5 -4 -4 ------- Run | Yrd Mat Sub Scr Fac Upp Upp Zhi Pro Fac Active Infowar (turns) 6900 | 23 1983 126 . 1671 891 720 188 948 350 Sensors 4150 | . . . . 1671 891 720 188 680 . Terrain 3869 | . . . . 1035 891 659 188 763 333 Seismic 2132 | 23 1983 126 . . . . . . . Cloaking 201 | . . . . . . . . . 201 Jamming 727 | . . . . . . . . 386 341 ECM 9 | . . . . . . . . . 9 Robot Analysis Total 4 | . . . . . . . 4 . . Derelict Logs Recovered 6 | . . 1 . . 1 2 . 2 . Drone Launches . | . . . . . . . . . . Drone Recoveries . | . . . . . . . . . . Exploration | -11 -10 -10 -7 -5 -5 -5 -5 -4 -4 ------------- Run | Yrd Mat Sub Scr Fac Upp Upp Zhi Pro Fac Turns Passed 9328 | 128 2244 377 1238 1839 891 720 188 1067 636 Spaces Moved 5022 | 67 730 128 970 913 518 489 139 588 480 Core 270 | 5 . . . . . . . . 265 Treads 551 | 62 470 . . . . . . . 19 Legs 1581 | . 260 128 3 . . 267 139 588 196 Wheels 2620 | . . . 967 913 518 222 . . . Hover . | . . . . . . . . . . Flight . | . . . . . . . . . . Fastest Speed 50 | 50 160 260 120 130 130 120 120 120 50 Average Speed 150 | 151 279 260 124 141 130 124 120 120 87 Slowest Speed 330 | 160 320 260 260 145 130 130 120 330 190 Overloaded Moves . | . . . . . . . . . . Propulsion Burnouts . | . . . . . . . . . . Robots Hopped . | . . . . . . . . . . Potential Cave-ins 5 | . . . . . . 2 . 3 . Cave-ins Triggered . | . . . . . . . . . . Teleports 1 | . . . . . . . . . 1 Exploration Rate (%) 48 | 5 98 13 75 18 54 66 60 73 21 Regions Visited 9 Branch Regions 6 Pre-discovered Areas 5 | . . . . 1 . . 3 1 . Known Exits Taken 4 | . . . . 1 1 1 1 . . Unknown Exits Taken 5 | 1 1 1 1 . . . . 1 . Scrap Searched 18 | . . . 10 . 3 3 . 2 . Spaces Dug 86 | . . . . 9 20 11 . 26 20 Terrain Destroyed 182 | . . 5 . 9 56 11 . 53 48 Melee 45 | . . . . 4 6 6 . 13 16 Projectile 36 | . . . . 5 9 5 . 13 4 AOE 101 | . . 5 . . 41 . . 27 28 Terrain Rammed . | . . . . . . . . . . Walls Destroyed . | . . . . . . . . . . Machines Disabled . | . . . . . . . . . . Actions | -11 -10 -10 -7 -5 -5 -5 -5 -4 -4 --------- Run | Yrd Mat Sub Scr Fac Upp Upp Zhi Pro Fac Total 6320 | 84 882 155 1008 1338 687 573 155 813 625 Wait 620 | 2 54 10 . 270 93 51 . 98 42 Move 5013 | 66 729 127 969 912 517 488 138 587 480 Hop . | . . . . . . . . . . Pick Up 91 | 6 27 1 14 23 2 2 2 7 7 Fast Attach 39 | 7 1 . 1 4 . 2 4 7 13 Attach 45 | . 2 1 1 13 1 3 1 10 13 Detach 15 | . 2 . 1 3 . 1 2 1 5 Swap 70 | . 13 4 5 18 11 4 2 11 2 Drop 78 | . 17 . 17 21 . 3 3 5 12 Fire 171 | 3 36 12 . 57 26 5 . 22 10 Melee 145 | . . . . 17 11 14 3 65 35 Ram . | . . . . . . . . . . Kick . | . . . . . . . . . . Crush 1 | . 1 . . . . . . . . Escape Stasis . | . . . . . . . . . . Rewire 30 | . . . . . 26 . . . 4 Trap 2 | . . . . . . . . . 2 Miscellaneous . | . . . . . . . . . . Route ------- -11/Scrapyard -10/Materials (discovered 6 exits: [*Mat x3] / [*Min x2] / [*Sub]) -10/Subcaves -7/Scraptown -5/Factory (discovered 4 exits: *Upp x2 / Ext x2) -5/Upper Caves -5/Upper Caves (discovered 2 exits: *Fac / *Zhi) -5/Zhirov -4/Proximity Caves -4/Factory (discovered 1 exit: Arm) History --------- Turn | Location | Event 3 | -11/Scrapyard | Discovered new exit (range 16) 129 | -11/Scrapyard | Entered Materials 303 | -10/Materials | Build established: Mutant 384 | -10/Materials | Discovered new exit (range 8) 452 | -10/Materials | Discovered new exit (range 16) 658 | -10/Materials | Discovered new exit (range 13) 1602 | -10/Materials | Discovered new exit (range 13) 1834 | -10/Materials | Discovered new exit (range 14) 2355 | -10/Materials | Discovered new exit (range 7) 2373 | -10/Materials | Entered Subcaves 2374 | -10/Subcaves | Approached by a straggling Scientist 2498 | -10/Subcaves | Core integrity fell below 50% 2705 | -10/Subcaves | Scientist uncovered a shortcut to Scraptown 2721 | -10/Subcaves | Learned 2 Materials zone layouts 2750 | -10/Subcaves | Entered Scraptown 2750 | -7/Scraptown | System corruption cleaned by C-Scrubber 2922 | -7/Scraptown | Visited Science Testing Area 2936 | -7/Scraptown | Heard Great Nut preacher, LISTEN AND RECITE! 2939 | -7/Scraptown | Visited Bundlers 3255 | -7/Scraptown | Visited SPCMW 3267 | -7/Scraptown | Visited Spacefarers 3279 | -7/Scraptown | Visited Cave Peace 3308 | -7/Scraptown | Visited Assassins FH 3322 | -7/Scraptown | Visited Cyclists 3357 | -7/Scraptown | Visited UFD Registry 3357 | -7/Scraptown | Registered with UFD as "Flashroller" 3381 | -7/Scraptown | Entered Cyclist Reading Room 3442 | -7/Scraptown | Visited DA-N13 Charitable Foundation 3454 | -7/Scraptown | Found DCF Scrap (26 items) 3508 | -7/Scraptown | Visited Supply Room 3545 | -7/Scraptown | Visited Scrapoid Pod Storage 3637 | -7/Scraptown | Visited Science Guys 3691 | -7/Scraptown | Visited Supply Room 3721 | -7/Scraptown | Visited Junk Repository 3753 | -7/Scraptown | Visited Derelict Rescue Squad 3774 | -7/Scraptown | Visited Scrap Suit Storage 3795 | -7/Scraptown | Visited Curators Association 3823 | -7/Scraptown | Visited Observation Area 3912 | -7/Scraptown | Met Optimus 3912 | -7/Scraptown | Accepted into 0bPrime 3983 | -7/Scraptown | Discovered new exit (range 5) 3988 | -7/Scraptown | Entered Factory 3988 | -5/Factory | Evolved 10 slots: Propulsion x3, Utility x5, Weapon x2 4294 | -5/Factory | Build established: Tank 4590 | -5/Factory | Spotted B-75 Beast 4645 | -5/Factory | Destroyed B-75 Beast 5026 | -5/Factory | Identified exit to Upper Caves 5026 | -5/Factory | Identified exit to Extension 5037 | -5/Factory | Build established: Skirmisher 5644 | -5/Factory | Loaded intel: 8 recycling unit locations 5691 | -5/Factory | Learned location of Protoforge (-2) 5827 | -5/Factory | Entered Upper Caves 5840 | -5/Upper Caves | Encountered a Warlord checkpoint 5932 | -5/Upper Caves | Build established: Gladiator 6028 | -5/Upper Caves | Attacked by a faux Warlord 6652 | -5/Upper Caves | Learned Factory terminal intel 6678 | -5/Upper Caves | Discovered new exit (range 15) 6717 | -5/Upper Caves | Identified exit to Upper Caves 6718 | -5/Upper Caves | Entered another Upper Caves area 6734 | -5/Upper Caves | Learned 4 Factory zone layouts 6758 | -5/Upper Caves | Learned Factory emergency access door positions 6772 | -5/Upper Caves | Discovered new exit (range 14) 7326 | -5/Upper Caves | Discovered new exit (range 15) 7346 | -5/Upper Caves | Identified exit to Zhirov 7438 | -5/Upper Caves | Entered Zhirov 7438 | -5/Zhirov | Discovered new exit (range 3) 7460 | -5/Zhirov | Met Zhirov 7486 | -5/Zhirov | Learned location of Quarantine (-2) 7486 | -5/Zhirov | Learned location of Testing (-3) 7486 | -5/Zhirov | Learned location of Command (-1) 7494 | -5/Zhirov | Zhirov requested help retrieving the SGEMP Prototype 7513 | -5/Zhirov | Found Alien Artifact 7513 | -5/Zhirov | Identified Integrated Dissipator 7513 | -5/Zhirov | Installed Integrated Dissipator, increased core heat dissipation (+20) 7530 | -5/Zhirov | Found Alien Artifact 7625 | -5/Zhirov | Identified exit to Proximity Caves 7626 | -5/Zhirov | Entered Proximity Caves 7626 | -4/Proximity Caves | Learned 4 Research zone layouts 8210 | -4/Proximity Caves | System corruption reached 10% 8247 | -4/Proximity Caves | Core integrity fell below 50% 8287 | -4/Proximity Caves | Lost 14 parts (1p5n7u1w) 8457 | -4/Proximity Caves | Attracted the attention of an 0b10 checkpoint 8595 | -4/Proximity Caves | Spotted B-86 Titan 8601 | -4/Proximity Caves | Build established: Derelict-Gladiator 8679 | -4/Proximity Caves | Discovered new exit (range 12) 8693 | -4/Proximity Caves | Entered Factory 8693 | -4/Factory | Evolved 2 slots: Power x1, Propulsion x1 8694 | -4/Factory | Identified exit to Armory 8696 | -4/Factory | Loaded intel: 26 terminal locations 8743 | -4/Factory | Loaded intel: 8 recycling unit locations 8822 | -4/Factory | Fabricated Imp. Cloaking Device (x2) 8878 | -4/Factory | Garrison activated, responded to threat 9039 | -4/Factory | Spotted B-86 Titan 9138 | -4/Factory | Identified Transdimensional Reconstructor 9138 | -4/Factory | Warped through subspace 9142 | -4/Factory | Core integrity fell below 50% 9151 | -4/Factory | Core integrity fell below 20% 9183 | -4/Factory | Lost 31 parts (4p12n8u7w) 9329 | -4/Factory | Destroyed by Y-64 Sentinel with KE Penetrator Last Messages --------------- 09191_ K-01 Serf cleans the Nuclear Reactor. 09192_ Acquired Imp. Antigrav System. 09205_ Acquired System Shield. 09217_ Connecting with Terminal... 09222_ Terminal disabled. 09236_ O-24 Administrator: "IFF HANDSHAKE FAILED. SECURING TERMINAL." 09237_ ALERT: Potential suspicious activity detected, Programmers report to Factory Zone 4Z. 09237_ O-24 Administrator destroyed. 09238_ Acquired 30 matter. 09240_ Acquired data core, extracted dynamic key. 09240_ Decrypted 2 local trap positions from data. 09243_ ALERT: Security rotation in progress. 09249_ K-01 Serf cleans the Fusion Modulator. 09251_ Acquired Adv. ECM Suite. 09253_ K-01 Serf cleans the Fusion Modulator. 09298_ Dropped Adv. Coolant Injector. 09303_ Acquired Lrn. Missile Launcher. 09329_ Dropped Adv. ECM Suite. 09329_ Penetrated by Slug. Map ----- +----------------------------------------------------+ | ???# "" ! ?#??????????????????? | | ???# #??????????????????? | | ???# """ """ #??????????????????? | | ???# """ """ #??????????????????? | | ????/ """ """ #??????????????????? | | ?????? ????????????????????? | | ???????? /??????????????????????? | | ##########+####????????????????????? | | ########?????????????? | | #?????????????? | | #?????????????? | | #?????????????? | | #?????????????? | | #?????????????? | | #?????????????? | | ################ #?????????????? | | ???????????????# #?????????????? | | #??????????????# #?????????????? | | ################ ######????????? | | #????????? | | #????????? | | #????????? | | #????????? | | !#????????? | | #+############ ######/#####????? | | ! ##???# # @ Y#????? | | ! #????# # ##????? | | #????# + ] #?????? | | #????# ^ # #?????? | | #????# # """" #?????? | | #????# # !! """" #?????? | | #????# # !! """" #?????? | | #????# # """" #?????? | | #????? ####+###?##?????? | | #????? ?#???????????????? | | #?????? ???????????????????? | | #??????????????????????????? | | #########??????????????????????????? | | ???????????????????????????????????? | | ???????????????????????????????????? | | ???????????????????????????????????? | | ???????????????????????????????????? | | ???????????????????????????????????? | | ???????????????????????????????????? | | ???????????????????????????????????? | | ???????????????????????????????????? | | ???????????????????????????????????? | | ???????????????????????????????????? | | ???????????????????????????????????? | | ???????????????????????????????????? | +----------------------------------------------------+ Best States ------------- Heat Dissipation 94 Coolant Potential 100 Energy Generation 37 Energy Capacity 395 Matter Stores 300 Matter Capacity 300 Sight Range 16 Robot Scan Range 16 Terrain Scan Range 20 Terrain Scan Density 10 Jamming Range 14 Cloak Strength 3 Armor Coverage 825 Weapon Shielding 90 Evasion (%) 55 Targeting Accuracy 8 Melee Accuracy 22 Recoil Reduction 3 Kinecelleration 30 Defensive Hacking 14 Item Schematics ----------------- Assault Drone Bay | -5/Zhirov | Free Exp. Heat Sink | -5/Zhirov | Free Exp. Optical Array | -5/Zhirov | Free Imp. Arc Thrower | -5/Zhirov | Free Robot Schematics ------------------ None Fabricated ------------ Imp. Cloaking Device | x2 | -4/Factory | Preloaded Repaired ---------- Nothing Alien Tech Used ----------------- Integrated Dissipator Transdimensional Reconstructor Achievements -------------- None Challenges ------------ None Game ------ Seed ShockJammingStatue Manual? 0 Play Time 01:01:06 Cumulative 504.6 hours Start 2025.06.24 @ 15:33:05 End 2025.06.24 @ 18:54:14 Sessions 3 Manual Loads 0 Difficulty Rogue Special Mode None Game No. 350 Rogue 350 Adventurer 0 Explorer 0 Win Type - Total 46 Types 39/0/5/2/0/0/0/0/0/0 Lore% 83 Gallery% 79 Achievement% 72 Wizard Run 0 Options --------- Layout 0 ASCII 0 Keyboard 1 Movement Numpad Keybinds 0 Fullscreen 1 Font 24/Smallcaps Map View 76x50 Zoom Use 0% Tactical HUD 1 Map Filters NONE Filters NONE Steam 1 RUN: 0e457977-f3e5-4867-a8cd-8e45d57a57bf